fUST/lending_fUST_20250722
["ID","MTS","AMOUNT","RATE_DAILY","PERIOD"]
[373927354,1753156240986,-1041.56,0.00017047,2]
[373927356,1753156240995,-720.36,0.00017047,2]
[373927358,1753156241004,-440.52236543,0.00017047,2]
[373927359,1753156241013,-308888.82517366,0.00017048,2]
[373927360,1753156241022,-500.98109667,0.00017073,2]
[373927361,1753156241031,-500.0,0.00017073,2]
[373927362,1753156241041,-500.0,0.00017073,2]
[373927363,1753156241050,-1391.38099044,0.00017129,2]
[373927364,1753156241063,-461.8751412,0.00017146,2]
[373927365,1753156241073,-460.0,0.00017146,2]
[373927366,1753156241082,-462.65989763,0.00017146,2]
[373927367,1753156241091,-461.23990033,0.00017146,2]
[373927368,1753156241101,-469.03337623,0.00017146,2]
[373927369,1753156241110,-163.83793952,0.00017146,2]
[373927370,1753156241119,-461.11525908,0.00017146,2]
[373927371,1753156241128,-460.0,0.00017146,2]
[373927372,1753156241137,-470.45298476,0.00017146,2]
[373927373,1753156241146,-460.0,0.00017146,2]
[373927374,1753156241156,-462.60384915,0.00017146,2]
[373927375,1753156241165,-464.92581405,0.00017146,2]
[373927376,1753156241174,-462.67201187,0.00017146,2]
[373927377,1753156241183,-460.0,0.00017146,2]
[373927378,1753156241193,-464.7501534,0.00017146,2]
[373927379,1753156241202,-460.0,0.00017146,2]
[373927380,1753156241211,-460.0,0.00017146,2]
[373927381,1753156241221,-463.30609476,0.00017146,2]
[373927382,1753156241230,-460.0,0.00017146,2]
[373927383,1753156241240,-460.0,0.00017146,2]
[373927384,1753156241249,-468.68953362,0.00017146,2]
[373927385,1753156241258,-460.0,0.00017146,2]
[373927387,1753156241267,-464.07857501,0.00017146,2]
[373927389,1753156241276,-466.56276797,0.00017146,2]
[373927391,1753156241286,-551.7346544,0.00017146,2]
[373927393,1753156241295,-472.44978497,0.00017146,2]
[373927395,1753156241307,-461.451745,0.00017146,2]
[373927397,1753156241316,-460.0,0.00017146,2]
[373927399,1753156241325,-460.0,0.00017146,2]
[373927401,1753156241335,-464.65214094,0.00017146,2]
[373927403,1753156241344,-410.56461661,0.00017146,2]
[373927405,1753156241354,-466.74883979,0.00017146,2]
[373927407,1753156241363,-460.0,0.00017146,2]
[373927409,1753156241373,-460.0,0.00017146,2]
[373927411,1753156241382,-170.99656204,0.00017146,2]
[373927413,1753156241391,-460.0,0.00017146,2]
[373927415,1753156241404,-479.19,0.00017146,2]
[373927417,1753156241414,-467.27767351,0.00017146,2]
[373927419,1753156241423,-170.83632736,0.00017146,2]
[373927421,1753156241432,-460.0,0.00017146,2]
[373927423,1753156241442,-460.0,0.00017146,2]
[373927425,1753156241452,-460.0,0.00017146,2]
[373927428,1753156241461,-460.0,0.00017146,2]
[373927430,1753156241471,-460.0,0.00017146,2]
[373927431,1753156241483,-460.0,0.00017146,2]
[373927434,1753156241494,-460.0,0.00017146,2]
[373927435,1753156241503,-460.0,0.00017146,2]
[373927437,1753156241512,-1240.92,0.00017146,2]
[373927439,1753156241522,-460.0,0.00017146,2]
[373927441,1753156241532,-1222.29,0.00017146,2]
[373927443,1753156241541,-715.74,0.00017146,2]
[373927445,1753156241551,-460.0,0.00017146,2]
[373927448,1753156241562,-465.62052901,0.00017146,2]
[373927450,1753156241571,-460.72726183,0.00017146,2]
[373927452,1753156241581,-467.15622205,0.00017146,2]
[373927454,1753156241590,-463.6200879,0.00017146,2]
[373927456,1753156241600,-617.04,0.00017146,2]
[373927458,1753156241609,-460.0,0.00017146,2]
[373927460,1753156241618,-460.0,0.00017146,2]
[373927462,1753156241627,-460.0,0.00017146,2]
[373927464,1753156241637,-460.0,0.00017146,2]
[373927465,1753156241647,-461.30399072,0.00017146,2]
[373927467,1753156241656,-551.28152601,0.00017146,2]
[373927470,1753156241666,-460.0,0.00017146,2]
[373927472,1753156241676,-460.0,0.00017146,2]
[373927474,1753156241685,-460.0,0.00017146,2]
[373927476,1753156241695,-519.98,0.00017146,2]
[373927478,1753156241704,-1277.12,0.00017146,2]
[373927480,1753156241713,-460.0,0.00017146,2]
[373927482,1753156241723,-460.0,0.00017146,2]
[373927484,1753156241735,-460.0,0.00017146,2]
[373927486,1753156241744,-460.0,0.00017146,2]
[373927487,1753156241753,-460.0,0.00017146,2]
[373927489,1753156241762,-460.0,0.00017146,2]
[373927492,1753156241771,-502.49,0.00017146,2]
[373927494,1753156241781,-465.30515587,0.00017146,2]
[373927495,1753156241790,-460.0,0.00017146,2]
[373927498,1753156241800,-460.0,0.00017146,2]
[373927500,1753156241811,-460.0,0.00017146,2]
[373927502,1753156241820,-460.0,0.00017146,2]
[373927504,1753156241830,-732.62,0.00017146,2]
[373927506,1753156241840,-460.0,0.00017146,2]
[373927508,1753156241849,-460.0,0.00017146,2]
[373927510,1753156241859,-460.0,0.00017146,2]
[373927512,1753156241868,-270.97257431,0.00017146,2]
[373927514,1753156241877,-460.0,0.00017146,2]
[373927516,1753156241887,-460.0,0.00017146,2]
[373927518,1753156241897,-500.0,0.00017146,2]
[373927520,1753156241906,-500.0,0.00017146,2]
[373927522,1753156241915,-460.0,0.00017146,2]
[373927524,1753156241924,-462.61295759,0.00017146,2]
[373927526,1753156241934,-460.0,0.00017146,2]
[373927528,1753156241943,-460.0,0.00017146,2]
[373927530,1753156241952,-535.8635729,0.00017146,2]
[373927532,1753156241961,-460.0,0.00017146,2]
[373927534,1753156241970,-460.0,0.00017146,2]
[373927536,1753156241980,-282.74598011,0.00017146,2]
[373927538,1753156241989,-460.0,0.00017146,2]
[373927540,1753156241999,-461.75352362,0.00017146,2]
[373927542,1753156242008,-226.31008836,0.00017146,2]
[373927544,1753156242017,-461.4784449,0.00017146,2]
[373927546,1753156242026,-460.0,0.00017146,2]
[373927548,1753156242035,-460.0,0.00017146,2]
[373927550,1753156242044,-460.0,0.00017146,2]
[373927552,1753156242054,-460.0,0.00017146,2]
[373927553,1753156242064,-470.18020762,0.00017146,2]
[373927567,1753156242189,-460.70624162,0.00017146,2]
[373927569,1753156242199,-460.0,0.00017146,2]
[373927572,1753156242209,-460.0,0.00017146,2]
[373927574,1753156242220,-1416.11,0.00017146,2]
[373927576,1753156242229,-460.0,0.00017146,2]
[373927578,1753156242238,-460.0,0.00017146,2]
[373927580,1753156242247,-460.95230172,0.00017146,2]
[373927581,1753156242257,-460.0,0.00017146,2]
[373927583,1753156242266,-460.0,0.00017146,2]
[373927585,1753156242275,-460.0,0.00017146,2]
[373927587,1753156242285,-460.0,0.00017146,2]
[373927590,1753156242294,-460.0,0.00017146,2]
[373927591,1753156242303,-466.65,0.00017146,2]
[373927593,1753156242315,-460.0,0.00017146,2]
[373927596,1753156242325,-633.44,0.00017146,2]
[373927598,1753156242334,-433.75656594,0.00017146,2]
[373927600,1753156242343,-460.0,0.00017146,2]
[373927602,1753156242353,-460.0,0.00017146,2]
[373927604,1753156242362,-460.0,0.00017146,2]
[373927606,1753156242371,-354.56005267,0.00017146,2]
[373927608,1753156242380,-460.0,0.00017146,2]
[373927610,1753156242390,-460.0,0.00017146,2]
[373927612,1753156242400,-460.0,0.00017146,2]
[373927614,1753156242413,-560.63,0.00017146,2]
[373927616,1753156242422,-460.0,0.00017146,2]
[373927618,1753156242431,-465.85290375,0.00017146,2]
[373927620,1753156242441,-573.82070532,0.00017146,2]
[373927622,1753156242450,-460.0,0.00017146,2]
[373927624,1753156242460,-462.44040617,0.00017146,2]
[373927626,1753156242470,-474.02627055,0.00017146,2]
[373927628,1753156242481,-460.0,0.00017146,2]
[373927630,1753156242490,-460.0,0.00017146,2]
[373927632,1753156242499,-460.0,0.00017146,2]
[373927634,1753156242508,-527.0,0.00017146,2]
[373927636,1753156242518,-460.0,0.00017146,2]
[373927638,1753156242527,-514.72,0.00017146,2]
[373927640,1753156242537,-460.0,0.00017146,2]
[373927642,1753156242547,-460.0,0.00017146,2]
[373927644,1753156242559,-460.0,0.00017146,2]
[373927646,1753156242569,-460.0,0.00017146,2]
[373927648,1753156242580,-460.0,0.00017146,2]
[373927650,1753156242590,-460.0,0.00017146,2]
[373927652,1753156242600,-460.0,0.00017146,2]
[373927654,1753156242610,-462.05166162,0.00017146,2]
[373927656,1753156242620,-460.0,0.00017146,2]
[373927658,1753156242631,-460.0,0.00017146,2]
[373927660,1753156242641,-461.84142128,0.00017146,2]
[373927662,1753156242651,-374.90183988,0.00017146,2]
[373927664,1753156242661,-460.0,0.00017146,2]
[373927666,1753156242671,-460.0,0.00017146,2]
[373927668,1753156242683,-460.0,0.00017146,2]
[373927670,1753156242692,-460.0,0.00017146,2]
[373927672,1753156242703,-460.0,0.00017146,2]
[373927674,1753156242713,-460.0,0.00017146,2]
[373927676,1753156242722,-460.0,0.00017146,2]
[373927678,1753156242732,-460.0,0.00017146,2]
[373927680,1753156242742,-465.39014913,0.00017146,2]
[373927682,1753156242751,-500.0,0.00017147,2]
[373927684,1753156242760,-500.0,0.00017147,2]
[373927686,1753156242770,-500.0,0.00017147,2]
[373927688,1753156242780,-460.98195777,0.00017148,2]
[373927691,1753156242789,-460.0,0.00017148,2]
[373927693,1753156242799,-460.0,0.00017148,2]
[373927695,1753156242812,-460.0,0.00017148,2]
[373927697,1753156242822,-460.0,0.00017148,2]
[373927699,1753156242832,-460.0,0.00017148,2]
[373927700,1753156242842,-427.72632387,0.00017148,2]
[373927703,1753156242852,-463.39966426,0.00017148,2]
[373927705,1753156242862,-460.53309415,0.00017148,2]
[373927706,1753156242871,-462.42558212,0.00017148,2]
[373927708,1753156242881,-460.0,0.00017148,2]
[373927711,1753156242890,-460.0,0.00017148,2]
[373927713,1753156242900,-460.69065561,0.00017148,2]
[373927715,1753156242910,-460.0,0.00017148,2]
[373927717,1753156242919,-460.0,0.00017148,2]
[373927719,1753156242929,-460.0,0.00017148,2]
[373927721,1753156242938,-460.0,0.00017148,2]
[373927723,1753156242948,-460.0,0.00017148,2]
[373927725,1753156242957,-576.47,0.00017148,2]
[373927727,1753156242967,-460.0,0.00017148,2]
[373927729,1753156242977,-460.0,0.00017148,2]
[373927731,1753156242986,-590.13098003,0.00017148,2]
[373927733,1753156242996,-460.0,0.00017148,2]
[373927735,1753156243006,-2991.25,0.00017148,2]
[373927737,1753156243016,-461.38793345,0.00017148,2]
[373927739,1753156243026,-460.0,0.00017148,2]
[373927741,1753156243035,-460.0,0.00017148,2]
[373927743,1753156243045,-460.0,0.00017148,2]
[373927745,1753156243055,-460.0,0.00017148,2]
[373927747,1753156243067,-463.44555663,0.00017148,2]
[373927749,1753156243076,-460.0,0.00017148,2]
[373927751,1753156243085,-461.34331367,0.00017148,2]
[373927753,1753156243095,-460.0,0.00017148,2]
[373927755,1753156243104,-1236.41,0.00017148,2]
[373927757,1753156243114,-884.61,0.00017148,2]
[373927759,1753156243123,-312.02226483,0.00017148,2]
[373927761,1753156243132,-460.0,0.00017148,2]
[373927763,1753156243142,-533.2,0.00017148,2]
[373927765,1753156243152,-462.58451632,0.00017148,2]
[373927767,1753156243161,-460.7981892,0.00017148,2]
[373927769,1753156243171,-460.0,0.00017148,2]
[373927771,1753156243181,-471.62674155,0.00017148,2]
[373927773,1753156243190,-460.0,0.00017148,2]
[373927775,1753156243200,-401.39084843,0.00017148,2]
[373927777,1753156243209,-460.0,0.00017148,2]
[373927779,1753156243219,-460.0,0.00017148,2]
[373927781,1753156243228,-460.0,0.00017148,2]
[373927783,1753156243237,-460.0,0.00017148,2]
[373927785,1753156243246,-3057.07,0.00017148,2]
[373927787,1753156243255,-460.0,0.00017148,2]
[373927789,1753156243265,-8255.01,0.00017148,2]
[373927791,1753156243274,-3964.62,0.00017148,2]
[373927793,1753156243283,-967.78,0.00017149,2]
[373927795,1753156243293,-3092.03,0.00017149,2]
[373927797,1753156243303,-1953.11,0.00017149,2]
[373927799,1753156243316,-151.576342,0.00017151,2]
[373927801,1753156243325,-460.0,0.00017151,2]
[373927803,1753156243335,-463.44201296,0.00017151,2]
[373927805,1753156243344,-462.32014531,0.00017151,2]
[373927807,1753156243354,-460.0,0.00017151,2]
[373927809,1753156243363,-462.64421077,0.00017151,2]
[373927811,1753156243372,-461.67519469,0.00017151,2]
[373927813,1753156243382,-464.2752139,0.00017151,2]
[373927815,1753156243392,-533.2,0.00017151,2]
[373927817,1753156243405,-533.2,0.00017151,2]
[373927820,1753156243414,-533.2,0.00017151,2]
[373927822,1753156243423,-151.0,0.00017151,2]
[373927824,1753156243433,-151.0,0.00017151,2]
[373927826,1753156243443,-460.0,0.00017151,2]
[373927828,1753156243452,-151.0,0.00017151,2]
[373927830,1753156243462,-1166.8,0.00017151,2]
[373927832,1753156243472,-151.0,0.00017151,2]
[373927834,1753156243481,-2528.24,0.00017151,2]
[373927836,1753156243492,-1835.33,0.00017151,2]
[373927838,1753156243501,-465.3009541,0.00017151,2]
[373927840,1753156243510,-460.0,0.00017151,2]
[373927842,1753156243520,-1645.14,0.00017151,2]
[373927844,1753156243530,-151.0,0.00017152,2]
[373927846,1753156243540,-151.0,0.00017152,2]
[373927848,1753156243549,-151.0,0.00017152,2]
[373927850,1753156243561,-151.0,0.00017152,2]
[373927852,1753156243571,-151.0,0.00017152,2]
[373927854,1753156243581,-151.0,0.00017152,2]
[373927856,1753156243590,-460.0,0.00017152,2]
[373927858,1753156243601,-460.0,0.00017152,2]
[373927860,1753156243610,-533.2,0.00017152,2]
[373927862,1753156243620,-151.0,0.00017152,2]
[373927864,1753156243629,-151.0,0.00017152,2]
[373927866,1753156243639,-151.0,0.00017152,2]
[373927868,1753156243649,-151.0,0.00017152,2]
[373927870,1753156243658,-152.082345,0.00017152,2]
[373927872,1753156243668,-151.0,0.00017152,2]
[373927874,1753156243677,-151.0,0.00017152,2]
[373927876,1753156243687,-460.0,0.00017152,2]
[373927878,1753156243695,-151.0,0.00017153,2]
[373927880,1753156243705,-533.2,0.00017157,2]
[373927883,1753156243715,-151.0,0.00017157,2]
[373927885,1753156243724,-151.0,0.00017158,2]
[373927887,1753156243733,-152.047654,0.00017158,2]
[373927889,1753156243743,-151.0,0.00017158,2]
[373927891,1753156243752,-533.2,0.00017158,2]
[373927893,1753156243762,-460.75418429,0.00017158,2]
[373927895,1753156243771,-2773.76,0.00017158,2]
[373927897,1753156243781,-460.0,0.00017158,2]
[373927899,1753156243790,-563.15914466,0.00017158,2]
[373927901,1753156243800,-460.0,0.00017158,2]
[373927903,1753156243810,-500.0,0.00017173,2]
[373927905,1753156243820,-502.13258244,0.00017173,2]
[373927907,1753156243829,-500.0,0.00017173,2]
[373927909,1753156243839,-500.0,0.00017173,2]
[373927911,1753156243848,-539.04544864,0.00017173,2]
[373927913,1753156243858,-500.0,0.00017173,2]
[373927915,1753156243868,-500.0,0.00017173,2]
[373927917,1753156243877,-508.41565789,0.00017173,2]
[373927919,1753156243886,-501.33063497,0.00017173,2]
[373927921,1753156243895,-506.58093708,0.00017173,2]
[373927923,1753156243905,-500.0,0.00017173,2]
[373927925,1753156243914,-500.0,0.00017173,2]
[373927927,1753156243923,-500.18337289,0.00017173,2]
[373927929,1753156243933,-210.97713428,0.00017173,2]
[373927931,1753156243942,-500.0,0.00017173,2]
[373927933,1753156243953,-504.30457904,0.00017173,2]
[373927935,1753156243962,-320.76348213,0.00017173,2]
[373927937,1753156243971,-500.0,0.00017173,2]
[373927939,1753156243981,-504.81165985,0.00017173,2]
[373927941,1753156243990,-502.98951132,0.00017173,2]
[373927943,1753156243999,-500.0,0.00017173,2]
[373927945,1753156244008,-500.0,0.00017173,2]
[373927947,1753156244019,-500.47415245,0.00017173,2]
[373927949,1753156244028,-500.0,0.00017173,2]
[373927951,1753156244037,-500.0,0.00017173,2]
[373927953,1753156244046,-500.0,0.00017173,2]
[373927955,1753156244057,-212.29215106,0.00017173,2]
[373927957,1753156244066,-500.0,0.00017173,2]
[373927959,1753156244076,-500.0,0.00017173,2]
[373927961,1753156244085,-501.5848709,0.00017173,2]
[373927963,1753156244095,-500.69098951,0.00017173,2]
[373927965,1753156244105,-501.28405146,0.00017173,2]
[373927967,1753156244115,-151.0,0.00017173,2]
[373927969,1753156244124,-321.0,0.00017213,2]
[373927971,1753156244134,-533.2,0.00017247,2]
[373927973,1753156244143,-6103.24698115,0.00017256,2]
[373927975,1753156244152,-533.2,0.00017258,2]
[373927977,1753156244162,-533.2,0.00017258,2]
[373927979,1753156244171,-533.2,0.00017258,2]
[373927981,1753156244180,-533.2,0.00017258,2]
[373927983,1753156244189,-151.0,0.00017259,2]
[373927985,1753156244199,-151.0,0.00017259,2]
[373927987,1753156244208,-533.2,0.00017261,2]
[373927989,1753156244217,-533.2,0.00017262,2]
[373927992,1753156244227,-533.2,0.00017272,2]
[373927994,1753156244237,-1391.38099044,0.00017285,2]
[373927996,1753156244246,-460.0,0.00017317,2]
[373927998,1753156244255,-460.0,0.00017317,2]
[373928000,1753156244265,-460.0,0.00017317,2]
[373928001,1753156244274,-500.0,0.00017317,2]
[373928004,1753156244284,-500.0,0.00017317,2]
[373928006,1753156244293,-500.0,0.00017317,2]
[373928008,1753156244302,-192.75154239,0.00017317,2]
[373928009,1753156244314,-500.0,0.00017317,2]
[373928011,1753156244323,-219.79892354,0.00017318,2]
[373928013,1753156244332,-460.0,0.00017318,2]
[373928015,1753156244343,-460.0,0.00017318,2]
[373928018,1753156244353,-473.92495537,0.00017318,2]
[373928020,1753156244363,-460.0,0.00017318,2]
[373928022,1753156244372,-475.15615547,0.00017318,2]
[373928024,1753156244381,-460.0,0.00017318,2]
[373928026,1753156244390,-460.0,0.00017318,2]
[373928027,1753156244399,-460.0,0.00017318,2]
[373928030,1753156244414,-460.0,0.00017318,2]
[373928032,1753156244423,-460.0,0.00017318,2]
[373928033,1753156244432,-674.99,0.00017318,2]
[373928035,1753156244441,-820.88,0.00017318,2]
[373928037,1753156244452,-487.41154843,0.00017318,2]
[373928039,1753156244461,-460.0,0.00017318,2]
[373928041,1753156244471,-2515.27,0.00017318,2]
[373928043,1753156244480,-460.0,0.00017318,2]
[373928045,1753156244490,-482.17,0.00017318,2]
[373928047,1753156244499,-8737.49,0.00017318,2]
[373928049,1753156244509,-460.0,0.00017318,2]
[373928051,1753156244518,-460.0,0.00017318,2]
[373928053,1753156244527,-460.0,0.00017318,2]
[373928055,1753156244536,-460.0,0.00017318,2]
[373928057,1753156244546,-460.0,0.00017318,2]
[373928059,1753156244556,-460.0,0.00017319,2]
[373928061,1753156244566,-460.0,0.00017319,2]
[373928063,1753156244575,-460.0,0.00017319,2]
[373928066,1753156244586,-4239.13,0.00017319,2]
[373928067,1753156244595,-1012.69,0.00017319,2]
[373928069,1753156244605,-816.12,0.00017319,2]
[373928072,1753156244614,-460.0,0.00017319,2]
[373928073,1753156244623,-460.0,0.00017319,2]
[373928076,1753156244633,-3923.5,0.00017319,2]
[373928078,1753156244643,-460.0,0.00017319,2]
[373928080,1753156244653,-791.6,0.00017319,2]
[373928081,1753156244663,-460.0,0.00017319,2]
[373928084,1753156244673,-1749.42,0.00017319,2]
[373928086,1753156244682,-972.62,0.00017319,2]
[373928088,1753156244692,-460.0,0.00017319,2]
[373928090,1753156244702,-923.13,0.00017319,2]
[373928092,1753156244711,-460.0,0.0001732,2]
[373928094,1753156244721,-460.0,0.0001732,2]
[373928107,1753156244845,-460.0,0.0001732,2]
[373928109,1753156244854,-328.93406664,0.0001732,2]
[373928111,1753156244863,-460.0,0.0001732,2]
[373928113,1753156244873,-423.06888372,0.0001732,2]
[373928115,1753156244882,-450.0,0.0001732,2]
[373928117,1753156244893,-460.0,0.0001732,2]
[373928119,1753156244902,-460.0,0.0001732,2]
[373928121,1753156244911,-460.0,0.0001732,2]
[373928123,1753156244921,-460.0,0.0001732,2]
[373928125,1753156244931,-610.72,0.0001732,2]
[373928127,1753156244941,-460.0,0.0001732,2]
[373928129,1753156244950,-460.0,0.0001732,2]
[373928131,1753156244960,-460.0,0.0001732,2]
[373928133,1753156244969,-460.0,0.0001732,2]
[373928135,1753156244978,-460.0,0.0001732,2]
[373928137,1753156244988,-159.98383421,0.0001732,2]
[373928139,1753156244997,-460.0,0.0001732,2]
[373928141,1753156245008,-460.0,0.0001732,2]
[373928143,1753156245018,-460.0,0.0001732,2]
[373928146,1753156245028,-460.0,0.0001732,2]
[373928147,1753156245039,-460.0,0.0001732,2]
[373928150,1753156245049,-460.0,0.0001732,2]
[373928152,1753156245062,-460.0,0.0001732,2]
[373928154,1753156245072,-479.79834282,0.0001732,2]
[373928156,1753156245082,-460.0,0.0001732,2]
[373928158,1753156245092,-460.0,0.0001732,2]
[373928160,1753156245102,-641.85,0.0001732,2]
[373928162,1753156245111,-1144.1,0.0001732,2]
[373928164,1753156245122,-486.59036689,0.0001732,2]
[373928166,1753156245132,-460.0,0.0001732,2]
[373928168,1753156245142,-460.0,0.0001732,2]
[373928170,1753156245151,-460.0,0.0001732,2]
[373928172,1753156245161,-460.0,0.0001732,2]
[373928174,1753156245171,-460.0,0.0001732,2]
[373928176,1753156245180,-182.57087377,0.0001732,2]
[373928178,1753156245190,-460.0,0.0001732,2]
[373928180,1753156245200,-460.0,0.0001732,2]
[373928182,1753156245210,-693.98,0.0001732,2]
[373928184,1753156245220,-460.0,0.0001732,2]
[373928186,1753156245229,-872.69,0.0001732,2]
[373928188,1753156245238,-460.0,0.0001732,2]
[373928190,1753156245248,-1269.85,0.0001732,2]
[373928191,1753156245257,-460.0,0.0001732,2]
[373928192,1753156245266,-1080.93,0.0001732,2]
[373928193,1753156245275,-606.5,0.0001732,2]
[373928194,1753156245285,-151.0,0.0001732,2]
[373928195,1753156245293,-464.02174514,0.0001732,2]
[373928196,1753156245303,-153.657606,0.0001732,2]
[373928197,1753156245315,-621.49,0.0001732,2]
[373928198,1753156245325,-460.0,0.0001732,2]
[373928199,1753156245334,-1739.45,0.0001732,2]
[373928200,1753156245343,-753.66,0.0001732,2]
[373928201,1753156245352,-460.0,0.0001732,2]
[373928202,1753156245362,-541.08967874,0.0001732,2]
[373928203,1753156245370,-460.0,0.0001732,2]
[373928204,1753156245379,-460.0,0.0001732,2]
[373928205,1753156245388,-460.0,0.0001732,2]
[373928206,1753156245397,-460.0,0.0001732,2]
[373928207,1753156245410,-151.0,0.0001732,2]
[373928208,1753156245421,-460.0,0.0001732,2]
[373928209,1753156245431,-151.0,0.0001732,2]
[373928210,1753156245441,-1065.74,0.0001732,2]
[373928211,1753156245451,-460.0,0.0001732,2]
[373928212,1753156245460,-4026.39,0.0001732,2]
[373928214,1753156245469,-151.0,0.0001732,2]
[373928216,1753156245478,-460.0,0.0001732,2]
[373928218,1753156245490,-460.0,0.0001732,2]
[373928220,1753156245500,-460.0,0.0001732,2]
[373928222,1753156245509,-460.0,0.0001732,2]
[373928224,1753156245519,-460.0,0.0001732,2]
[373928226,1753156245528,-838.35,0.0001732,2]
[373928228,1753156245538,-151.0,0.0001732,2]
[373928230,1753156245547,-460.0,0.0001732,2]
[373928232,1753156245558,-1019.26,0.0001732,2]
[373928234,1753156245568,-460.0,0.0001732,2]
[373928236,1753156245578,-460.0,0.00017321,2]
[373928238,1753156245587,-460.0,0.00017321,2]
[373928240,1753156245596,-265.21065748,0.00017321,2]
[373928242,1753156245606,-460.0,0.00017321,2]
[373928244,1753156245615,-460.0,0.00017321,2]
[373928246,1753156245625,-965.92,0.00017321,2]
[373928248,1753156245635,-460.0,0.00017321,2]
[373928250,1753156245645,-460.0,0.00017321,2]
[373928252,1753156245654,-742.66,0.00017321,2]
[373928254,1753156245664,-460.0,0.00017321,2]
[373928257,1753156245673,-1057.29,0.00017321,2]
[373928259,1753156245682,-1041.56,0.00017321,2]
[373928261,1753156245692,-720.36,0.00017321,2]
[373928263,1753156245701,-533.2,0.0001738,2]
[373928265,1753156245711,-401.0,0.00017383,2]
[373928268,1753156245720,-429.5320659,0.000174,2]
[373928270,1753156245729,-151.0,0.00017419,2]
[373928272,1753156245739,-151.0,0.00017419,2]
[373928274,1753156245749,-151.993621,0.00017419,2]
[373928276,1753156245758,-477.35374876,0.0001742,2]
[373928278,1753156245768,-460.0,0.0001742,2]
[373928280,1753156245777,-467.0143145,0.0001742,2]
[373928282,1753156245786,-466.72581969,0.0001742,2]
[373928284,1753156245796,-460.0,0.0001742,2]
[373928286,1753156245805,-460.0,0.0001742,2]
[373928288,1753156245815,-466.79351541,0.0001742,2]
[373928290,1753156245824,-460.0,0.0001742,2]
[373928292,1753156245833,-460.0,0.0001742,2]
[373928294,1753156245843,-460.0,0.0001742,2]
[373928296,1753156245852,-466.63514975,0.0001742,2]
[373928298,1753156245861,-460.0,0.0001742,2]
[373928300,1753156245870,-460.0,0.0001742,2]
[373928302,1753156245880,-479.19,0.0001742,2]
[373928304,1753156245889,-460.0,0.0001742,2]
[373928306,1753156245898,-472.45662599,0.0001742,2]
[373928308,1753156245908,-460.0,0.0001742,2]
[373928310,1753156245918,-470.61095494,0.0001742,2]
[373928312,1753156245928,-471.89490987,0.0001742,2]
[373928314,1753156245937,-459.06164029,0.0001742,2]
[373928316,1753156245946,-460.0,0.0001742,2]
[373928318,1753156245956,-463.97500908,0.0001742,2]
[373928320,1753156245965,-1240.92,0.0001742,2]
[373928322,1753156245975,-151.0,0.0001742,2]
[373928324,1753156245984,-460.0,0.0001742,2]
[373928326,1753156245993,-1222.29,0.0001742,2]
[373928328,1753156246005,-715.74,0.0001742,2]
[373928331,1753156246019,-617.04,0.0001742,2]
[373928333,1753156246033,-460.0,0.0001742,2]
[373928336,1753156246047,-522.55213114,0.0001742,2]